Cogmind - Beta 10.2 @@@ ROGUE MODE // 2021.06.08 @ 16:06:00 Player: Boodz Result: Self-destructed Performance ------------- Evolutions (1) 500 Regions Visited (3) 600 Robots Destroyed (10) 50 Value Destroyed (224) 224 Prototype IDs (0) 0 Alien Tech Used (0) 0 Bonus (0) 0 TOTAL SCORE: 1374 Bonus ------- None Cogmind --------- Core Integrity 143/400 Matter 300/300 Energy 60/100 System Corruption 0% Temperature Cool (249) Movement Walking (150) Ox1 Location -9/Materials Parts ------- > --- POWER (1) -------- (None) > --- PROPULSION (4) --- Aluminum Leg > --- UTILITY (2) ------ Large Storage Unit > --- WEAPON (2) ------- (None) > --- INVENTORY (10) --- Ion Engine Ion Engine Wheel Flight Unit Heat Sink Targeting Computer Heavy Hammer Peak State ------------ > --- POWER ------------ Ion Engine > --- PROPULSION ------- Aluminum Leg Aluminum Leg Aluminum Leg Aluminum Leg > --- UTILITY ---------- Large Storage Unit Propulsion Shielding > --- WEAPON ----------- Small Laser Light Assault Rifle > --- INVENTORY -------- Ion Engine Ion Engine Aluminum Leg Aluminum Leg Wheel Flight Unit Heat Sink Hammer Heavy Hammer [Rating: 10] Favorites ----------- Power Light Ion Engine Engine Light Ion Engine Propulsion Aluminum Leg Leg Aluminum Leg Utility Large Storage Unit Storage Large Storage Unit Protection Propulsion Shielding Weapon Light Assault Rifle Energy Gun Small Laser Ballistic Gun Light Assault Rifle Impact Weapon Heavy Hammer Build | -11 -10 -10 -9 ------- Run | Scr Mat Min Mat Slots Evolved 2 | . . . 2 Power . | . . . . Propulsion 2 | . . . 2 Utility . | . . . . Weapon . | . . . . Parts Attached 20 | 6 5 . 9 Power 2 | 1 1 . . Engine 2 | 1 1 . . Core . | . . . . Reactor . | . . . . Propulsion 6 | 2 . . 4 Treads . | . . . . Leg 6 | 2 . . 4 Wheel . | . . . . Hover . | . . . . Flight . | . . . . Utility 4 | 1 3 . . Device . | . . . . Storage 3 | 1 2 . . Processor . | . . . . Hackware . | . . . . Protection 1 | . 1 . . Artifact . | . . . . Weapon 8 | 2 1 . 5 Energy Gun 3 | . 1 . 2 Energy Cannon . | . . . . Ballistic Gun 3 | 2 . . 1 Ballistic Cannon . | . . . . Launcher . | . . . . Special Weapon . | . . . . Impact Weapon 2 | . . . 2 Slashing Weapon . | . . . . Piercing Weapon . | . . . . Special Melee Weapon . | . . . . Unidentified Prototypes . | . . . . Parts Lost 12 | . . . 12 Power 1 | . . . 1 Propulsion 5 | . . . 5 Utility 1 | . . . 1 Weapon 5 | . . . 5 Highest Loss Streak 7 | . . . 7 Average Slot Usage (%) 93 | . 96 100 82 Engine 12 | . 14 14 10 Leg 30 | . 28 28 36 Storage 13 | . 14 14 11 Protection 9 | . 10 14 5 Energy Gun 4 | . . 14 5 Ballistic Gun 18 | . 27 14 4 Impact Weapon 2 | . . . 7 Naked Turns . | . . . . Heaviest Build 27 | 9 24 24 27 Greatest Support 40 | 20 20 20 40 Greatest Overweight (x) 2 | 2 1 1 1 Average Overweight (x) . | . . 1 . Largest Inventory Capacity 10 | 6 10 10 10 Average Capacity 9 | 5 9 10 10 Most Carried 10 | 6 10 10 10 Average Carried 7 | 3 7 9 7 Final Capacity 10 | 6 10 10 10 Final Carried 10 | 4 9 10 7 Class Distribution -------------------- 100% | Mutant Dominant Class ---------------- Mutant | -10/Materials Mutant | -10/Mines Mutant | -9/Materials Resources | -11 -10 -10 -9 ----------- Run | Scr Mat Min Mat Matter Collected 414 | 198 176 . 40 Remotely . | . . . . Salvage Created 275 | . 187 . 88 Parts 20 | . 12 . 8 Haulers Intercepted . | . . . . Recyclers Shooed . | . . . . Parts Field Recycled . | . . . . Retrieved Matter . | . . . . Parts Self-Destructed . | . . . . Prevented . | . . . . Kills | -11 -10 -10 -9 ------- Run | Scr Mat Min Mat Combat Hostiles Destroyed 9 | . 4 . 5 Melee 1 | . . . 1 Guns 7 | . 4 . 3 Classes Destroyed 3 | . 2 . 1 Worker 1 | . 1 . . Swarmer 4 | . . . 4 Grunt 5 | . 4 . 1 Best Kill Streak 2 | . 2 . 1 Combat Bots Only 2 | . 2 . 1 Max Kills in Single Turn 1 | . 1 . 1 Gunslinging . | . . . . Exploded . | . . . . Melee 1 | . . . 1 Uniques/NPCs Destroyed . | . . . . Combat | -11 -10 -10 -9 -------- Run | Scr Mat Min Mat Damage Taken 1446 | . 342 . 1104 Core 359 | . 102 . 257 Absorbed by Shields . | . . . . Core Remaining (%) 79 | 100 . 59 . Volleys Fired 51 | . 32 . 19 Largest 2 | . 2 . 2 Hottest 130 | . 40 . 130 Shots Fired 89 | . 64 . 25 Gun 89 | . 64 . 25 Cannon . | . . . . Launcher . | . . . . Special . | . . . . Kinetic 74 | . 64 . 10 Thermal 15 | . . . 15 Explosive . | . . . . Electromagnetic . | . . . . Robot Hit Streak 15 | . 15 . 6 Robot Miss Streak 6 | . 5 . 6 Penetration Max . | . . . . Secondary Targets 1 | . 1 . . Max Gunslinging Chain 1 | . 1 . . Shots Hit Robots 64 | . 44 . 20 Core Hits 27 | . 14 . 13 Critical Hits . | . . . . Critical Kills . | . . . . Critical Parts Destroyed . | . . . . Melee Attacks 14 | . . . 14 Impact 14 | . . . 14 Slashing . | . . . . Piercing . | . . . . Sneak Attacks . | . . . . Combat Hostiles . | . . . . Follow-up Attacks . | . . . . Damage Inflicted 680 | . 332 . 348 Guns 497 | . 332 . 165 Cannons . | . . . . Explosions . | . . . . Melee 183 | . . . 183 Ramming . | . . . . Kinetic 342 | . 332 . 10 Thermal 155 | . . . 155 Explosive . | . . . . Electromagnetic . | . . . . Impact 183 | . . . 183 Slashing . | . . . . Piercing . | . . . . Highest Corruption . | . . . . Average Corruption . | . . . . Corruption Purged . | . . . . Overload Shots . | . . . . Overflow Damage 53 | . . . 53 Projectiles . | . . . . Explosions . | . . . . Melee 53 | . . . 53 Knockbacks . | . . . . Impact . | . . . . Kinetic . | . . . . Secondary . | . . . . Self-Inflicted Damage . | . . . . Shots . | . . . . Rammed . | . . . . Targets Rammed . | . . . . Kicked . | . . . . Crushed . | . . . . Highest Temperature 249 | . 25 . 249 Average Temperature 46 | . 10 . 114 Received Heat Transfer 420 | . 192 . 228 Siege Activations . | . . . . Robots Corrupted . | . . . . Combat Hostiles . | . . . . Parts Fried 1 | . . . 1 Impact Corruptions 3 | . . . 3 Robots Melted . | . . . . Combat Hostiles . | . . . . Parts Melted . | . . . . Heat Transferred 240 | . . . 240 Parts Sabotaged . | . . . . Parts Stolen . | . . . . Parts Stripped . | . . . . Power Chain Reactions . | . . . . Missiles Intercepted . | . . . . Alert | -11 -10 -10 -9 ------- Run | Scr Mat Min Mat Peak Influence 125 | . 125 48 93 Initial 48 | . . 48 18 Average 42 | . 52 48 35 Maximum Alert Level . | . . . . Low Security (%) 100 | 100 100 100 100 Level 1 . | . . . . Level 2 . | . . . . Level 3 . | . . . . Level 4 . | . . . . Level 5 . | . . . . High Security . | . . . . Max Security . | . . . . Squads Dispatched 1 | . 1 . . Investigation . | . . . . Extermination . | . . . . Reinforcement 1 | . 1 . . Assault . | . . . . Garrison . | . . . . Intercept . | . . . . Construction Impeded . | . . . . Haulers Reinforced . | . . . . Stealth | -11 -10 -10 -9 --------- Run | Scr Mat Min Mat Distress Signals 2 | . . . 2 Communications Jammed . | . . . . Distress Signals . | . . . . Times Spotted 20 | . 6 . 14 Peak Tracking Total 9 | . 2 . 9 Tactical Retreats 1 | . . . 1 Traps | -11 -10 -10 -9 ------- Run | Scr Mat Min Mat Traps Triggered . | . . . . Indirectly . | . . . . Trap Hack Attempts . | . . . . Triggered . | . . . . Disarmed . | . . . . Reprogrammed . | . . . . Reused . | . . . . Traps Extracted . | . . . . Installed . | . . . . Triggered . | . . . . Machines | -11 -10 -10 -9 ---------- Run | Scr Mat Min Mat Machines Disabled . | . . . . Max in Single Turn . | . . . . Machines Sabotaged . | . . . . Garrisons Compromised . | . . . . Overloaded Fab Kills . | . . . . Fab Network Shutdowns . | . . . . Hacking | -11 -10 -10 -9 --------- Run | Scr Mat Min Mat Machines Accessed 1 | . 1 . . Terminals 1 | . 1 . . Fabricators . | . . . . Repair Stations . | . . . . Recycling Units . | . . . . Scanalyzers . | . . . . Garrison Access . | . . . . Total Hacks 2 | . 2 . . Successful 1 | . 1 . . Failed 1 | . 1 . . Catastrophic . | . . . . Database Lockouts . | . . . . Manual . | . . . . Terminals 2 | . 2 . . Fabricators . | . . . . Repair Stations . | . . . . Recycling Units . | . . . . Scanalyzers . | . . . . Garrison Access . | . . . . Terminal Hacks 1 | . 1 . . Zone Layout 1 | . 1 . . Fabricator Hacks . | . . . . Repair Station Hacks . | . . . . Recycling Unit Hacks . | . . . . Scanalyzer . | . . . . Garrison Access Hacks . | . . . . Unauthorized Hacks . | . . . . Terminals . | . . . . Fabricators . | . . . . Repair Stations . | . . . . Recycling Units . | . . . . Scanalyzers . | . . . . Garrison Access . | . . . . Data Cores Recovered . | . . . . Used . | . . . . Hacking Detections 1 | . 1 . . Full Trace Events . | . . . . Feedback Events . | . . . . Feedback Blocked . | . . . . Robot Schematics Acquired . | . . . . Robots Built . | . . . . Matter . | . . . . Time . | . . . . Total Robot Build Rating . | . . . . Part Schematics Acquired . | . . . . Parts Built . | . . . . Matter . | . . . . Time . | . . . . Total Part Build Rating . | . . . . Parts Repaired . | . . . . Time . | . . . . Parts Recycled . | . . . . Recycled Matter . | . . . . Retrieved Matter . | . . . . Retrieved Components . | . . . . Parts Scanalyzed . | . . . . Part Schematics Acquired . | . . . . Parts Damaged . | . . . . Bothacking | -11 -10 -10 -9 ------------ Run | Scr Mat Min Mat Used RIF Installer . | . . . . Robots Hacked . | . . . . Non-combat . | . . . . Combat . | . . . . Robot Hacks Applied . | . . . . Relay Couplers Released . | . . . . Robots Rewired . | . . . . Allies Hacked . | . . . . Hacks Repelled . | . . . . Allies | -11 -10 -10 -9 -------- Run | Scr Mat Min Mat Total Allies . | . . . . Largest Group . | . . . . Highest-Rated Group . | . . . . Highest-Rated Ally . | . . . . Total Orders . | . . . . Ally Attacks . | . . . . Total Damage . | . . . . Kills . | . . . . Allies Corrupted . | . . . . Allies Melted . | . . . . Intel | -11 -10 -10 -9 ------- Run | Scr Mat Min Mat Robot Analysis Total . | . . . . Derelict Logs Recovered 2 | . . 2 . Drone Launches . | . . . . Drone Recoveries . | . . . . Exploration | -11 -10 -10 -9 ------------- Run | Scr Mat Min Mat Turns Passed 655 | 61 322 99 173 Spaces Moved 332 | 46 160 65 61 Core 19 | 19 . . . Treads . | . . . . Legs 313 | 27 160 65 61 Wheels . | . . . . Hover . | . . . . Flight . | . . . . Fastest Speed 50 | 50 120 150 120 Average Speed 131 | 101 137 150 121 Slowest Speed 150 | 150 150 150 150 Overloaded Moves . | . . . . Propulsion Burnouts . | . . . . Robots Hopped . | . . . . Cave-ins Triggered . | . . . . Exploration Rate (%) 15 | 4 25 21 10 Regions Visited 3 Branch Regions 1 Pre-discovered Areas 1 | . . 1 . Known Exits Taken . | . . . . Unknown Exits Taken 3 | 1 1 1 . Scrap Searched 1 | . . 1 . Spaces Dug . | . . . . Terrain Destroyed . | . . . . Melee . | . . . . Projectile . | . . . . AOE . | . . . . Terrain Rammed . | . . . . Walls Destroyed . | . . . . Machines Disabled . | . . . . Actions | -11 -10 -10 -9 --------- Run | Scr Mat Min Mat Total 443 | 58 211 67 107 Wait 1 | . 1 . . Move 329 | 45 159 64 61 Hop . | . . . . Pick Up 23 | 7 10 2 4 Fast Attach 3 | 3 . . . Attach 11 | 3 1 . 7 Detach . | . . . . Swap 6 | . 4 . 2 Drop 5 | . 4 1 . Fire 51 | . 32 . 19 Melee 14 | . . . 14 Ram . | . . . . Kick . | . . . . Crush . | . . . . Escape Stasis . | . . . . Rewire . | . . . . Trap . | . . . . Miscellaneous . | . . . . Route ------- -11/Scrapyard -10/Materials -10/Mines -9/Materials (discovered 2 exits: Mat / Min) History --------- Turn | Location | Event 12 | -11/Scrapyard | Discovered new exit (range 15) 62 | -11/Scrapyard | Entered Materials 255 | -10/Materials | Discovered new exit (range 15) 308 | -10/Materials | Build established: Mutant 384 | -10/Materials | Entered Mines 413 | -10/Mines | Learned location of 2 exits from Materials 422 | -10/Mines | Learned location of Storage (-7) 469 | -10/Mines | Discovered new exit (range 7) 483 | -10/Mines | Entered Materials 483 | -9/Materials | Evolved 2 slots: Propulsion x2 484 | -9/Materials | Identified exit to Mines 484 | -9/Materials | Identified exit to Materials 629 | -9/Materials | Lost 7 parts (3n1u3w) 642 | -9/Materials | Core integrity fell below 50% 656 | -9/Materials | Self-destructed Last Messages --------------- Acquired Spread Laser. R-06 Scavenger inserts Lgt. Ion Engine into recycling unit. K-01 Serf collects debris. Acquired Spread Laser. R-06 Scavenger inserts Lgt. Assault Rifle into recycling unit. R-06 Scavenger inserts Flight Unit into recycling unit. U-05 Engineer lays Concrete. Aluminum Leg destroyed. U-05 Engineer lays Concrete. R-06 Scavenger collects Flight Unit. U-05 Engineer lays Concrete. G-34 Mercenary destroyed. U-05 Engineer lays Concrete. Ion Engine destroyed. Acquired 21 matter. R-06 Scavenger collects Aluminum Leg. Aluminum Leg destroyed. Spread Laser destroyed. R-06 Scavenger collects Ion Engine. Spread Laser destroyed. Map ----- +----------------------------------------------------+ | ?????????????????????????????????????????????????? | | ?????????????????????????????????????????????????? | | ?????????????????????????????????????????????????? | | ?????????????????????????????????????????????????? | | ?????????????????????????????????????????????????? | | ???????????????????#####?######??????????????????? | | ????????????######## #? #??????????????????? | | ????????????# # # """#??????????????????? | | ????????????# /! # # """#??????????????????? | | ????????????# /! + + """#??????????????????? | | ????????????# # # #??????????????????? | | ????????????# # #! #??????????????????? | | ????????????# # #?######??????????????????? | | ??????????########## #???#####?????????????????? | | ??????????+ ??# #?###"""#?????????????????? | | ??????????# ?# ###T#"Y"#####?????????????? | | ??????????# # #?????????????? | | ??????????# # #?????????????? | | ??????????# + % ##########????? | | ??????????# #% [[ Y ???? | | ??????????# # [ ???? | | ??????????# ?# % #####?????????? | | ??????????# ??# " " u##????????????? | | ?????# ############# "R" u T#????????????? | | ?????# %"""r !// u##????????????? | | ?????+ %u Y g@ !/ #???????? | | ?????# g= // #???????? | | ?????################+#####"T"# #???????? | | ??????????????????# #"""######## #???????? | | ??????????????????# !#####??????? #???????? | | ??????????????????# #???????????? #???????? | | ??????????????????# " " #????????????? #???????? | | ??????????????????# """"" #??????????????????????? | | ??????????????????# """"" #??????????????????????? | | ??????????????????# """"" #??????????????????????? | | ??????????????????# """ ?#??????????????????????? | | ??????????????????# ??????????????????????????? | | ??????????????????# ???????????????????????????? | | ??????????????????####???????????????????????????? | | ?????????????????????????????????????????????????? | | ?????????????????????????????????????????????????? | | ?????????????????????????????????????????????????? | | ?????????????????????????????????????????????????? | | ?????????????????????????????????????????????????? | | ?????????????????????????????????????????????????? | | ?????????????????????????????????????????????????? | | ?????????????????????????????????????????????????? | | ?????????????????????????????????????????????????? | | ?????????????????????????????????????????????????? | | ?????????????????????????????????????????????????? | +----------------------------------------------------+ Best States ------------- Heat Dissipation 28 Energy Generation 10 Energy Capacity 250 Matter Stores 300 Matter Capacity 300 Sight Range 16 Terrain Scan Density 10 Propulsion Shielding 33 Evasion (%) 50 Item Schematics ----------------- None Robot Schematics ------------------ None Fabricated ------------ Nothing Alien Tech Used ----------------- None Achievements -------------- None Challenges ------------ None Game ------ Seed NeutronGreatWheel Manual? 0 Play Time 00:15:09 Cumulative 15.4 hours Start 2021.06.08 @ 15:51:37 End 2021.06.08 @ 16:06:00 Sessions 1 Manual Loads 0 Difficulty Rogue Special Mode None Game No. 46 Rogue 46 Adventurer 0 Explorer 0 Win Type - Total 0 Types 0/0/0/0/0/0/0/0/0 Lore% 3 Gallery% 26 Achievement% 13 Wizard Run 0 Options --------- ASCII 0 Keyboard 0 Movement Mouse Keybinds 0 Fullscreen 1 Font 18/SmallcapsGlow Map View 76x50 Tactical HUD 0 Map Filters NONE Filters NONE Steam 1 RUN: d225ea23-11f4-41cc-8a25-61d705cc008c